[Event "MČR v rapid šachu družstev 2019"]
[Site "Teplice, Czech Republic"]
[Date "2019.09.15"]
[Round "3.4"]
[White "Vymazal, Bronislav"]
[Black "Krejci, Jan"]
[Result "1-0"]
[TimeControl "15 min. + 5s"]
[WhiteElo "2347"]
[BlackElo "2496"]

1. e4 {[%clk 00:15:08]} {[%emt 00:00:01]} e5 {[%clk 00:15:08]} {[%emt
00:00:02]} 2. Nf3 {[%clk 00:15:12]} {[%emt 00:00:01]} Nf6 {[%clk 00:15:10]}
{[%emt 00:00:04]} 3. Nxe5 {[%clk 00:15:06]} {[%emt 00:00:10]} d6 {[%clk
00:15:12]} {[%emt 00:00:02]} 4. Nf3 {[%clk 00:15:07]} {[%emt 00:00:05]} Nxe4
{[%clk 00:15:15]} {[%emt 00:00:02]} 5. d4 {[%clk 00:15:04]} {[%emt 00:00:07]}
d5 {[%clk 00:15:18]} {[%emt 00:00:02]} 6. Bd3 {[%clk 00:15:08]} {[%emt
00:00:02]} Nc6 {[%clk 00:15:22]} {[%emt 00:00:02]} 7. O-O {[%clk 00:15:03]}
{[%emt 00:00:10]} Be7 {[%clk 00:15:25]} {[%emt 00:00:01]} 8. Re1 {[%clk
00:14:48]} {[%emt 00:00:21]} Bg4 {[%clk 00:15:24]} {[%emt 00:00:06]} 9. c3
{[%clk 00:14:20]} {[%emt 00:00:33]} f5 {[%clk 00:15:13]} {[%emt 00:00:15]} 10.
Nbd2 {[%clk 00:14:23]} {[%emt 00:00:02]} O-O {[%clk 00:15:02]} {[%emt
00:00:16]} 11. Qb3 {[%clk 00:14:24]} {[%emt 00:00:03]} Kh8 {[%clk 00:13:55]}
{[%emt 00:01:12]} 12. h3 {[%clk 00:14:01]} {[%emt 00:00:28]} Bh5 {[%clk
00:13:49]} {[%emt 00:00:10]} 13. Qxb7 {[%clk 00:13:47]} {[%emt 00:00:19]} Qd6
{[%clk 00:13:50]} {[%emt 00:00:04]} 14. Bb5 {[%clk 00:12:48]} {[%emt 00:01:05]}
Na5 {[%clk 00:10:18]} {[%emt 00:03:37]} 15. Qa6 {[%clk 00:12:48]} {[%emt
00:00:05]} Qxa6 {[%clk 00:09:59]} {[%emt 00:00:25]} 16. Bxa6 {[%clk 00:12:51]}
{[%emt 00:00:01]} Rab8 {[%clk 00:10:02]} {[%emt 00:00:02]} 17. Nxe4 {[%clk
00:11:34]} {[%emt 00:01:23]} fxe4 {[%clk 00:09:42]} {[%emt 00:00:25]} 18. Ne5
{[%clk 00:11:37]} {[%emt 00:00:01]} Rb6 {[%clk 00:08:01]} {[%emt 00:01:46]} 19.
Be2 {[%clk 00:11:06]} {[%emt 00:00:36]} Be8 {[%clk 00:08:01]} {[%emt 00:00:04]}
20. b3 {[%clk 00:10:47]} {[%emt 00:00:25]} Bf6 {[%clk 00:07:01]} {[%emt
00:01:05]} 21. f4 {[%clk 00:10:47]} {[%emt 00:00:05]} Nb7 {[%clk 00:06:53]}
{[%emt 00:00:12]} 22. Ba3 {[%clk 00:10:13]} {[%emt 00:00:39]} Rg8 {[%clk
00:06:51]} {[%emt 00:00:08]} 23. c4 {[%clk 00:09:51]} {[%emt 00:00:28]} g5
{[%clk 00:04:50]} {[%emt 00:02:06]} 24. c5 {[%clk 00:09:03]} {[%emt 00:00:52]}
Bxe5 {[%clk 00:04:14]} {[%emt 00:00:41]} 25. fxe5 {[%clk 00:08:48]} {[%emt
00:00:20]} Rh6 {[%clk 00:03:52]} {[%emt 00:00:27]} 26. Rf1 {[%clk 00:07:04]}
{[%emt 00:01:49]} Nd8 {[%clk 00:03:39]} {[%emt 00:00:18]} 27. Bc1 {[%clk
00:06:48]} {[%emt 00:00:21]} Ne6 {[%clk 00:03:27]} {[%emt 00:00:17]} 28. Be3
{[%clk 00:06:51]} {[%emt 00:00:01]} Rh4 {[%clk 00:02:58]} {[%emt 00:00:34]} 29.
Bg4 {[%clk 00:06:46]} {[%emt 00:00:11]} Nf8 {[%clk 00:02:20]} {[%emt 00:00:43]}
30. Bxg5 {[%clk 00:06:31]} {[%emt 00:00:19]} Rxg5 {[%clk 00:02:12]} {[%emt
00:00:13]} 31. Rxf8+ {[%clk 00:06:34]} {[%emt 00:00:02]} Rg8 {[%clk 00:02:16]}
32. Raf1 {[%clk 00:06:24]} {[%emt 00:00:15]} Rh6 {[%clk 00:02:17]} {[%emt
00:00:05]} 33. e6 {[%clk 00:05:44]} {[%emt 00:00:44]} Kg7 {[%clk 00:01:18]}
{[%emt 00:01:04]} 34. e7 {[%clk 00:05:44]} {[%emt 00:00:05]} Bg6 {[%clk
00:00:51]} {[%emt 00:00:33]} 35. Be6 {[%clk 00:05:41]} {[%emt 00:00:08]} Rh8
{[%clk 00:00:55]} 36. Rxh8 {[%clk 00:05:00]} {[%emt 00:00:47]} Kxh8 {[%clk
00:00:58]} {[%emt 00:00:02]} 37. Bf7 {[%clk 00:05:03]} {[%emt 00:00:01]} 1-0

[Event "MČR v rapid šachu družstev 2019"]
[Site "Teplice, Czech Republic"]
[Date "2019.09.15"]
[Round "3.5"]
[White "Rubes, Jan"]
[Black "Bernasek, Jan"]
[Result "0-1"]
[TimeControl "15 min. + 5s"]
[WhiteElo "2345"]
[BlackElo "2496"]

1. Nf3 {[%clk 00:15:07]} {[%emt 00:00:03]} c5 {[%clk 00:15:09]} {[%emt
00:00:01]} 2. c4 {[%clk 00:15:06]} {[%emt 00:00:06]} Nc6 {[%clk 00:15:13]}
{[%emt 00:00:01]} 3. Nc3 {[%clk 00:15:04]} {[%emt 00:00:07]} g6 {[%clk
00:15:14]} {[%emt 00:00:04]} 4. e3 {[%clk 00:15:08]} {[%emt 00:00:02]} Nf6
{[%clk 00:15:13]} {[%emt 00:00:05]} 5. d4 {[%clk 00:15:07]} {[%emt 00:00:07]}
cxd4 {[%clk 00:15:17]} {[%emt 00:00:01]} 6. exd4 {[%clk 00:15:10]} {[%emt
00:00:02]} d5 {[%clk 00:15:20]} 7. cxd5 {[%clk 00:14:59]} {[%emt 00:00:16]}
Nxd5 {[%clk 00:15:23]} {[%emt 00:00:02]} 8. Qb3 {[%clk 00:15:02]} {[%emt
00:00:03]} Nxc3 {[%clk 00:15:26]} {[%emt 00:00:02]} 9. Bc4 {[%clk 00:14:59]}
{[%emt 00:00:08]} Nd5 {[%clk 00:15:29]} {[%emt 00:00:02]} 10. Bxd5 {[%clk
00:15:02]} {[%emt 00:00:02]} e6 {[%clk 00:15:33]} 11. Bxc6+ {[%clk 00:15:00]}
{[%emt 00:00:08]} bxc6 {[%clk 00:15:37]} {[%emt 00:00:01]} 12. O-O {[%clk
00:15:03]} {[%emt 00:00:02]} f6 {[%clk 00:15:09]} {[%emt 00:00:32]} 13. Be3
{[%clk 00:13:55]} {[%emt 00:01:13]} Qd5 {[%clk 00:14:50]} {[%emt 00:00:24]} 14.
Qa4 {[%clk 00:13:47]} {[%emt 00:00:14]} Kf7 {[%clk 00:14:12]} {[%emt 00:00:42]}
15. Rac1 {[%clk 00:13:31]} {[%emt 00:00:21]} Bd7 {[%clk 00:14:04]} {[%emt
00:00:13]} 16. Rfd1 {[%clk 00:13:08]} {[%emt 00:00:28]} Be7 {[%clk 00:13:57]}
{[%emt 00:00:12]} 17. Ne5+ {[%clk 00:13:02]} {[%emt 00:00:12]} Ke8 {[%clk
00:12:48]} {[%emt 00:01:13]} 18. Nxd7 {[%clk 00:10:42]} {[%emt 00:02:26]} Kxd7
{[%clk 00:12:47]} {[%emt 00:00:06]} 19. Rc5 {[%clk 00:10:46]} {[%emt 00:00:01]}
Qe4 {[%clk 00:11:36]} {[%emt 00:01:16]} 20. Ra5 {[%clk 00:10:49]} {[%emt
00:00:02]} Rhd8 {[%clk 00:10:28]} {[%emt 00:01:13]} 21. Rc1 {[%clk 00:09:25]}
{[%emt 00:01:28]} Rdc8 {[%clk 00:06:08]} {[%emt 00:04:26]} 22. Rxa7+ {[%clk
00:08:06]} {[%emt 00:01:25]} Rxa7 {[%clk 00:06:12]} {[%emt 00:00:01]} 23. Qxa7+
{[%clk 00:08:10]} {[%emt 00:00:01]} Rc7 {[%clk 00:06:16]} 24. Qa4 {[%clk
00:07:59]} {[%emt 00:00:17]} Rb7 {[%clk 00:05:47]} {[%emt 00:00:33]} 25. Qc2
{[%clk 00:07:50]} {[%emt 00:00:14]} Qd5 {[%clk 00:05:39]} {[%emt 00:00:13]} 26.
b3 {[%clk 00:07:44]} {[%emt 00:00:11]} Bd6 {[%clk 00:04:51]} {[%emt 00:00:54]}
27. g3 {[%clk 00:07:25]} {[%emt 00:00:23]} f5 {[%clk 00:04:50]} {[%emt
00:00:06]} 28. Qd2 {[%clk 00:07:21]} {[%emt 00:00:09]} Rb4 {[%clk 00:04:23]}
{[%emt 00:00:32]} 29. Rd1 {[%clk 00:07:14]} {[%emt 00:00:12]} Qf3 {[%clk
00:04:10]} {[%emt 00:00:17]} 30. Rc1 {[%clk 00:06:04]} {[%emt 00:01:15]} h5
{[%clk 00:03:41]} {[%emt 00:00:35]} 31. Rc4 {[%clk 00:04:39]} {[%emt 00:01:30]}
Rxc4 {[%clk 00:03:23]} {[%emt 00:00:23]} 32. bxc4 {[%clk 00:04:43]} {[%emt
00:00:01]} h4 {[%clk 00:03:27]} 33. c5 {[%clk 00:03:43]} {[%emt 00:01:06]} h3
{[%clk 00:02:50]} {[%emt 00:00:41]} 34. Kf1 {[%clk 00:03:33]} {[%emt 00:00:15]}
Bxg3 {[%clk 00:02:54]} {[%emt 00:00:02]} 35. d5 {[%clk 00:03:18]} {[%emt
00:00:20]} exd5 {[%clk 00:02:36]} {[%emt 00:00:23]} 36. Qd4 {[%clk 00:03:17]}
{[%emt 00:00:06]} Bc7 {[%clk 00:02:33]} {[%emt 00:00:08]} 37. Ke1 {[%clk
00:02:25]} {[%emt 00:00:57]} f4 {[%clk 00:01:54]} {[%emt 00:00:44]} 38. Qg7+
{[%clk 00:02:28]} {[%emt 00:00:01]} Kc8 {[%clk 00:01:58]} {[%emt 00:00:01]} 39.
Bd4 {[%clk 00:02:29]} {[%emt 00:00:05]} Ba5+ {[%clk 00:01:59]} {[%emt
00:00:04]} 0-1

[Event "MČR v rapid šachu družstev 2019"]
[Site "Teplice, Czech Republic"]
[Date "2019.09.15"]
[Round "3.6"]
[White "Cernousek, Lukas"]
[Black "Hadraba, Vladimir"]
[Result "0-1"]
[TimeControl "15 min. + 5s"]
[WhiteElo "2478"]
[BlackElo "2125"]

1. Nf3 {[%clk 00:15:09]} Nf6 {[%clk 00:15:09]} {[%emt 00:00:02]} 2. e3 {[%clk
00:15:13]} g6 {[%clk 00:15:11]} {[%emt 00:00:03]} 3. c4 {[%clk 00:15:13]}
{[%emt 00:00:05]} Bg7 {[%clk 00:15:15]} {[%emt 00:00:01]} 4. d4 {[%clk
00:15:09]} {[%emt 00:00:09]} O-O {[%clk 00:15:17]} {[%emt 00:00:04]} 5. b4
{[%clk 00:15:09]} {[%emt 00:00:04]} d5 {[%clk 00:14:52]} {[%emt 00:00:29]} 6.
a4 {[%clk 00:13:09]} {[%emt 00:02:06]} c6 {[%clk 00:13:57]} {[%emt 00:01:00]} 7.
Nbd2 {[%clk 00:12:18]} {[%emt 00:00:56]} a5 {[%clk 00:12:22]} {[%emt 00:01:40]}
8. b5 {[%clk 00:12:16]} {[%emt 00:00:08]} c5 {[%clk 00:12:06]} {[%emt
00:00:21]} 9. Bb2 {[%clk 00:09:42]} {[%emt 00:02:39]} cxd4 {[%clk 00:11:43]}
{[%emt 00:00:27]} 10. Bxd4 {[%clk 00:09:46]} {[%emt 00:00:02]} Nbd7 {[%clk
00:09:05]} {[%emt 00:02:44]} 11. Qb3 {[%clk 00:09:48]} {[%emt 00:00:03]} e6
{[%clk 00:08:48]} {[%emt 00:00:22]} 12. Qb2 {[%clk 00:08:25]} {[%emt 00:01:29]}
Ne8 {[%clk 00:06:53]} {[%emt 00:01:59]} 13. cxd5 {[%clk 00:07:59]} {[%emt
00:00:31]} exd5 {[%clk 00:06:57]} {[%emt 00:00:02]} 14. Be2 {[%clk 00:07:58]}
{[%emt 00:00:06]} Nc5 {[%clk 00:06:24]} {[%emt 00:00:37]} 15. O-O {[%clk
00:07:42]} {[%emt 00:00:21]} Bf5 {[%clk 00:05:41]} {[%emt 00:00:48]} 16. Qa3
{[%clk 00:05:05]} {[%emt 00:02:42]} Ne4 {[%clk 00:03:54]} {[%emt 00:01:52]} 17.
Rfd1 {[%clk 00:04:29]} {[%emt 00:00:41]} N8f6 {[%clk 00:02:58]} {[%emt
00:01:01]} 18. Nxe4 {[%clk 00:03:10]} {[%emt 00:01:25]} Nxe4 {[%clk 00:02:51]}
{[%emt 00:00:11]} 19. Qb3 {[%clk 00:02:10]} {[%emt 00:01:04]} Be6 {[%clk
00:02:41]} {[%emt 00:00:15]} 20. Rac1 {[%clk 00:01:32]} {[%emt 00:00:43]} Qd6
{[%clk 00:02:21]} {[%emt 00:00:25]} 21. Qb2 {[%clk 00:01:11]} {[%emt 00:00:26]}
Bxd4 {[%clk 00:02:15]} {[%emt 00:00:11]} 22. Qxd4 {[%clk 00:01:12]} {[%emt
00:00:05]} Qb4 {[%clk 00:02:03]} {[%emt 00:00:17]} 23. Rc7 {[%clk 00:00:46]}
{[%emt 00:00:30]} Rac8 {[%clk 00:01:56]} {[%emt 00:00:11]} 24. Rdc1 {[%clk
00:00:50]} {[%emt 00:00:01]} Rxc7 {[%clk 00:01:42]} {[%emt 00:00:19]} 25. Rxc7
{[%clk 00:00:54]} {[%emt 00:00:01]} b6 {[%clk 00:01:36]} {[%emt 00:00:11]} 26.
Qxb4 {[%clk 00:00:10]} {[%emt 00:00:49]} axb4 {[%clk 00:01:39]} {[%emt
00:00:01]} 27. Bd1 {[%clk 00:00:07]} {[%emt 00:00:08]} Nc3 {[%clk 00:01:32]}
{[%emt 00:00:12]} 28. Bb3 {[%clk 00:00:08]} {[%emt 00:00:04]} Ra8 {[%clk
00:01:35]} {[%emt 00:00:01]} 29. Nd4 {[%clk 00:00:08]} {[%emt 00:00:06]} Nxa4
{[%clk 00:01:33]} {[%emt 00:00:07]} 30. f4 {[%emt 00:00:09]} 0-1

[Event "MČR v rapid šachu družstev 2019"]
[Site "Teplice, Czech Republic"]
[Date "2019.09.15"]
[Round "3.7"]
[White "Kral, David"]
[Black "Vrbata, Zbynek"]
[Result "1/2-1/2"]
[TimeControl "15 min. + 5s"]
[WhiteElo "2029"]
[BlackElo "2376"]

1. d4 {[%clk 00:15:05]} {[%emt 00:00:04]} Nf6 {[%clk 00:15:09]} {[%emt
00:00:02]} 2. c4 {[%clk 00:15:09]} {[%emt 00:00:01]} g6 {[%clk 00:15:12]}
{[%emt 00:00:01]} 3. Nc3 {[%clk 00:15:13]} Bg7 {[%clk 00:15:16]} {[%emt
00:00:01]} 4. e4 {[%clk 00:15:17]} O-O {[%clk 00:15:19]} {[%emt 00:00:03]} 5.
f3 {[%clk 00:15:06]} {[%emt 00:00:17]} d6 {[%clk 00:15:15]} {[%emt 00:00:09]} 6.
Be3 {[%clk 00:15:09]} {[%emt 00:00:02]} b6 {[%clk 00:15:12]} {[%emt 00:00:07]}
7. Qd2 {[%clk 00:15:13]} {[%emt 00:00:02]} c5 {[%clk 00:15:10]} {[%emt
00:00:06]} 8. Nge2 {[%clk 00:15:02]} {[%emt 00:00:17]} Nc6 {[%clk 00:15:10]}
{[%emt 00:00:05]} 9. O-O-O {[%clk 00:14:57]} {[%emt 00:00:10]} e5 {[%clk
00:14:46]} {[%emt 00:00:29]} 10. dxc5 {[%clk 00:12:40]} {[%emt 00:02:22]} dxc5
{[%clk 00:14:48]} {[%emt 00:00:03]} 11. Qxd8 {[%clk 00:12:41]} {[%emt
00:00:04]} Rxd8 {[%clk 00:14:50]} {[%emt 00:00:03]} 12. Rxd8+ {[%clk 00:12:44]}
{[%emt 00:00:02]} Nxd8 {[%clk 00:14:53]} {[%emt 00:00:01]} 13. Nd5 {[%clk
00:12:42]} {[%emt 00:00:08]} Nc6 {[%clk 00:14:33]} {[%emt 00:00:25]} 14. Nec3
{[%clk 00:12:32]} {[%emt 00:00:15]} Ne8 {[%clk 00:13:12]} {[%emt 00:01:26]} 15.
Bd3 {[%clk 00:12:05]} {[%emt 00:00:33]} f6 {[%clk 00:12:13]} {[%emt 00:01:04]}
16. g4 {[%clk 00:11:48]} {[%emt 00:00:22]} Kf7 {[%clk 00:12:08]} {[%emt
00:00:09]} 17. h4 {[%clk 00:11:49]} {[%emt 00:00:04]} Nd4 {[%clk 00:11:25]}
{[%emt 00:00:47]} 18. Rf1 {[%clk 00:11:16]} {[%emt 00:00:39]} Ne6 {[%clk
00:10:55]} {[%emt 00:00:34]} 19. g5 {[%clk 00:10:18]} {[%emt 00:01:04]} Bb7
{[%clk 00:08:43]} {[%emt 00:02:17]} 20. f4 {[%clk 00:10:04]} {[%emt 00:00:19]}
exf4 {[%clk 00:08:39]} {[%emt 00:00:09]} 21. Nxf4 {[%clk 00:09:56]} {[%emt
00:00:13]} Nxf4 {[%clk 00:07:55]} {[%emt 00:00:49]} 22. Bxf4 {[%clk 00:09:24]}
{[%emt 00:00:36]} Ke6 {[%clk 00:05:22]} {[%emt 00:02:38]} 23. Nd5 {[%clk
00:09:05]} {[%emt 00:00:24]} fxg5 {[%clk 00:04:34]} {[%emt 00:00:53]} 24. hxg5
{[%clk 00:08:44]} {[%emt 00:00:26]} Rd8 {[%clk 00:03:57]} {[%emt 00:00:41]} 25.
Rh1 {[%clk 00:07:30]} {[%emt 00:01:20]} Kf7 {[%clk 00:02:33]} {[%emt 00:01:29]}
26. Rxh7 {[%clk 00:07:05]} {[%emt 00:00:30]} Kg8 {[%clk 00:02:36]} {[%emt
00:00:02]} 27. Rh1 {[%clk 00:06:52]} {[%emt 00:00:18]} Nd6 {[%clk 00:02:39]}
{[%emt 00:00:03]} 28. Kc2 {[%clk 00:05:08]} {[%emt 00:01:49]} b5 {[%clk
00:02:09]} {[%emt 00:00:34]} 29. b3 {[%clk 00:04:42]} {[%emt 00:00:32]} bxc4
{[%clk 00:02:06]} {[%emt 00:00:08]} 30. bxc4 {[%clk 00:04:41]} {[%emt
00:00:06]} Ba6 {[%clk 00:01:45]} {[%emt 00:00:25]} 31. Rf1 {[%clk 00:03:10]}
{[%emt 00:01:35]} Bd4 {[%clk 00:01:26]} {[%emt 00:00:24]} 32. Bxd6 {[%clk
00:01:35]} {[%emt 00:01:41]} Rxd6 {[%clk 00:01:27]} {[%emt 00:00:04]} 33. Rb1
{[%clk 00:01:02]} {[%emt 00:00:38]} Kf7 {[%clk 00:01:08]} {[%emt 00:00:24]} 34.
Rb8 {[%clk 00:01:01]} {[%emt 00:00:06]} Rd7 {[%clk 00:01:03]} {[%emt 00:00:10]}
35. Ra8 {[%clk 00:00:22]} {[%emt 00:00:42]} Ke8 {[%emt 00:00:33]} 1/2-1/2

[Event "MČR v rapid šachu družstev 2019"]
[Site "Teplice, Czech Republic"]
[Date "2019.09.15"]
[Round "3.8"]
[White "Kuba, Jindrich"]
[Black "Kudrlicka, Ladislav"]
[Result "1-0"]
[TimeControl "15 min. + 5s"]
[WhiteElo "2229"]
[BlackElo "2033"]

1. e4 {[%clk 00:15:08]} {[%emt 00:00:02]} e5 {[%clk 00:15:07]} {[%emt
00:00:03]} 2. Nf3 {[%clk 00:15:11]} {[%emt 00:00:02]} Nc6 {[%clk 00:15:09]}
{[%emt 00:00:02]} 3. Bb5 {[%clk 00:15:14]} {[%emt 00:00:02]} Nf6 {[%clk
00:15:11]} {[%emt 00:00:03]} 4. O-O {[%clk 00:15:17]} {[%emt 00:00:03]} Bc5
{[%clk 00:15:13]} {[%emt 00:00:03]} 5. d3 {[%clk 00:15:16]} {[%emt 00:00:07]}
d6 {[%clk 00:15:14]} {[%emt 00:00:03]} 6. h3 {[%clk 00:15:15]} {[%emt
00:00:06]} h6 {[%clk 00:15:15]} {[%emt 00:00:04]} 7. c3 {[%clk 00:15:18]}
{[%emt 00:00:02]} O-O {[%clk 00:14:45]} {[%emt 00:00:34]} 8. Nbd2 {[%clk
00:15:18]} {[%emt 00:00:05]} a6 {[%clk 00:14:05]} {[%emt 00:00:45]} 9. Ba4
{[%clk 00:15:21]} {[%emt 00:00:02]} b5 {[%clk 00:12:57]} {[%emt 00:01:13]} 10.
Bc2 {[%clk 00:15:24]} {[%emt 00:00:02]} Qe7 {[%clk 00:12:08]} {[%emt 00:00:54]}
11. Re1 {[%clk 00:15:00]} {[%emt 00:00:30]} Bd7 {[%clk 00:10:57]} {[%emt
00:01:16]} 12. Nf1 {[%clk 00:15:03]} {[%emt 00:00:02]} Nh5 {[%clk 00:10:09]}
{[%emt 00:00:54]} 13. d4 {[%clk 00:15:03]} {[%emt 00:00:04]} exd4 {[%clk
00:09:20]} {[%emt 00:00:54]} 14. Nxd4 {[%clk 00:14:49]} {[%emt 00:00:19]} Bxd4
{[%clk 00:08:31]} {[%emt 00:00:54]} 15. cxd4 {[%clk 00:14:51]} {[%emt
00:00:03]} Nf6 {[%clk 00:08:06]} {[%emt 00:00:30]} 16. Ng3 {[%clk 00:14:47]}
{[%emt 00:00:08]} Rfe8 {[%clk 00:07:41]} {[%emt 00:00:29]} 17. a3 {[%clk
00:14:41]} {[%emt 00:00:11]} Qf8 {[%clk 00:07:00]} {[%emt 00:00:47]} 18. Qd3
{[%clk 00:14:35]} {[%emt 00:00:11]} g6 {[%clk 00:06:38]} {[%emt 00:00:27]} 19.
b3 {[%clk 00:14:38]} {[%emt 00:00:02]} Ne7 {[%clk 00:05:18]} {[%emt 00:01:25]}
20. Qf3 {[%clk 00:14:08]} {[%emt 00:00:35]} Qg7 {[%clk 00:04:34]} {[%emt
00:00:49]} 21. Bxh6 {[%clk 00:12:24]} {[%emt 00:01:49]} Qxh6 {[%clk 00:04:15]}
{[%emt 00:00:23]} 22. Qxf6 {[%clk 00:12:28]} {[%emt 00:00:02]} Qd2 {[%clk
00:03:34]} {[%emt 00:00:46]} 23. Re2 {[%clk 00:12:31]} {[%emt 00:00:02]} Qc3
{[%clk 00:03:24]} {[%emt 00:00:15]} 24. Rd1 {[%clk 00:12:34]} {[%emt 00:00:02]}
Nc6 {[%clk 00:02:38]} {[%emt 00:00:50]} 25. Red2 {[%clk 00:07:48]} {[%emt
00:04:52]} Ne7 {[%clk 00:00:28]} {[%emt 00:02:15]} 26. Qg5 {[%clk 00:06:59]}
{[%emt 00:00:54]} Be6 {[%clk 00:00:24]} {[%emt 00:00:08]} 27. Nh5 {[%clk
00:06:31]} {[%emt 00:00:34]} Bxb3 {[%clk 00:00:09]} {[%emt 00:00:21]} 28. Bxb3
{[%clk 00:06:34]} {[%emt 00:00:02]} Qxb3 {[%clk 00:00:12]} {[%emt 00:00:02]} 29.
Rd3 {[%clk 00:06:37]} {[%emt 00:00:02]} Qe6 {[%clk 00:00:12]} {[%emt 00:00:05]}
30. Nf6+ {[%clk 00:06:36]} {[%emt 00:00:05]} Kg7 {[%clk 00:00:16]} {[%emt
00:00:01]} 31. Nxe8+ {[%clk 00:06:32]} {[%emt 00:00:09]} Rxe8 {[%clk 00:00:20]}
{[%emt 00:00:01]} 32. Qf4 {[%clk 00:06:06]} {[%emt 00:00:31]} Qf6 {[%clk
00:00:22]} {[%emt 00:00:03]} 33. Qxf6+ {[%clk 00:05:51]} {[%emt 00:00:20]} Kxf6
{[%clk 00:00:26]} {[%emt 00:00:01]} 34. Rc3 {[%clk 00:05:55]} {[%emt 00:00:01]}
c6 {[%clk 00:00:30]} {[%emt 00:00:01]} 35. f3 {[%clk 00:05:46]} {[%emt
00:00:14]} Rd8 {[%clk 00:00:32]} {[%emt 00:00:01]} 36. Kf2 {[%clk 00:05:39]}
{[%emt 00:00:12]} d5 {[%clk 00:00:36]} {[%emt 00:00:01]} 37. Ke3 {[%clk
00:05:19]} {[%emt 00:00:25]} Ke6 {[%clk 00:00:40]} 38. h4 {[%clk 00:04:46]}
{[%emt 00:00:39]} Rh8 {[%clk 00:00:44]} {[%emt 00:00:02]} 39. Rh1 {[%clk
00:04:41]} {[%emt 00:00:10]} f5 {[%clk 00:00:46]} {[%emt 00:00:03]} 40. e5
{[%clk 00:04:10]} {[%emt 00:00:37]} Kd7 {[%clk 00:00:48]} {[%emt 00:00:03]} 41.
g4 {[%clk 00:04:11]} {[%emt 00:00:03]} Ke6 {[%clk 00:00:43]} {[%emt 00:00:10]}
42. Rcc1 {[%clk 00:04:12]} {[%emt 00:00:05]} Rh7 {[%clk 00:00:44]} {[%emt
00:00:05]} 43. h5 {[%clk 00:04:05]} {[%emt 00:00:11]} fxg4 {[%clk 00:00:46]}
{[%emt 00:00:03]} 44. fxg4 {[%clk 00:04:09]} {[%emt 00:00:01]} gxh5 {[%clk
00:00:50]} {[%emt 00:00:01]} 45. Rxh5 {[%clk 00:04:04]} {[%emt 00:00:10]} Rg7
{[%clk 00:00:51]} {[%emt 00:00:04]} 46. Rh6+ {[%clk 00:04:00]} {[%emt
00:00:09]} Kd7 {[%clk 00:00:55]} {[%emt 00:00:01]} 47. Kf4 {[%clk 00:03:47]}
{[%emt 00:00:16]} Ng6+ {[%clk 00:00:56]} {[%emt 00:00:06]} 48. Kg3 {[%clk
00:03:51]} {[%emt 00:00:02]} Ne7 {[%clk 00:00:58]} {[%emt 00:00:02]} 49. Rf1
{[%clk 00:03:35]} {[%emt 00:00:21]} a5 {[%clk 00:00:59]} {[%emt 00:00:04]} 50.
Rhf6 {[%clk 00:03:28]} {[%emt 00:00:11]} a4 {[%clk 00:00:55]} {[%emt 00:00:10]}
51. Rd6+ {[%clk 00:03:13]} {[%emt 00:00:20]} Kc7 {[%clk 00:00:58]} {[%emt
00:00:02]} 52. Rdf6 {[%clk 00:03:13]} {[%emt 00:00:05]} Kd7 {[%clk 00:01:01]}
{[%emt 00:00:01]} 53. Rf7 {[%clk 00:03:16]} {[%emt 00:00:03]} Rxf7 {[%clk
00:01:02]} {[%emt 00:00:04]} 54. Rxf7 {[%clk 00:03:20]} {[%emt 00:00:02]} Ke6
{[%clk 00:00:56]} {[%emt 00:00:10]} 55. Rf6+ {[%clk 00:03:22]} {[%emt
00:00:02]} Kd7 {[%clk 00:01:00]} {[%emt 00:00:01]} 56. g5 {[%clk 00:03:11]}
{[%emt 00:00:17]} c5 {[%clk 00:00:57]} {[%emt 00:00:08]} 57. dxc5 {[%clk
00:03:08]} {[%emt 00:00:08]} Kc7 {[%clk 00:00:46]} {[%emt 00:00:15]} 58. g6
{[%clk 00:02:55]} {[%emt 00:00:18]} b4 {[%clk 00:00:50]} {[%emt 00:00:01]} 59.
axb4 {[%clk 00:02:55]} {[%emt 00:00:05]} a3 {[%clk 00:00:54]} {[%emt 00:00:02]}
1-0